bitfinex/quotes_SOLUSD_20250326
["timestamp","ask_amount","ask_price","bid_price","bid_amount"]
[1742956982600,0.28432314,142.91,142.88,12.27558359]
[1742956983699,0.28432314,142.91,142.88,19.27438359]
[1742956985103,18.933972,142.91,142.88,12.27558359]
[1742956985403,18.933972,142.91,142.88,19.27438359]
[1742956986802,18.933972,142.91,142.88,0.03]
[1742956990810,18.933972,142.91,142.88,12.27558359]
[1742956993322,209.7957,142.97,142.9,12.24558359]
[1742956993524,0.063,142.97,142.94,12.24558359]
[1742956993815,20.14216157,142.96,142.95,12.24558359]
[1742956994007,38.933972,142.96,142.94,12.24558359]
[1742956994212,0.14216157,142.95,142.93,12.24558359]
[1742956994418,0.063,142.94,142.92,1.5525]
[1742956994583,0.063,142.94,142.93,12.24558359]
[1742956997813,0.063,142.94,142.92,8.5494]
[1742956998012,0.063,142.94,142.92,20.79498359]
[1742956998205,0.063,142.94,142.93,12.24558359]
[1742957003200,0.063,142.94,142.92,20.79478359]
[1742957003515,0.063,142.94,142.92,13.79808359]
[1742957004598,0.063,142.94,142.92,20.79488359]
[1742957006597,0.063,142.94,142.91,12.27558359]
[1742957006799,0.20516157,142.94,142.91,0.03]
[1742957009813,31.17955559,142.92,142.91,0.03]
[1742957016607,18.933972,142.92,142.91,0.03]
[1742957016834,31.17955559,142.92,142.91,0.03]
[1742957019029,0.28432314,142.92,142.91,0.03]
[1742957020236,0.14216157,142.92,142.91,0.03]
[1742957021622,0.063,142.94,142.91,0.03]
[1742957021820,0.34732314,142.94,142.91,0.03]
[1742957025439,0.14216157,142.93,142.91,0.03]
[1742957026749,0.28432314,142.92,142.91,0.03]
[1742957026926,12.52990673,142.92,142.91,0.03]
[1742957027421,31.17955559,142.92,142.91,0.03]
[1742957033240,18.933972,142.92,142.91,0.03]
[1742957033622,20.28432314,142.92,142.91,0.03]
[1742957037652,38.933972,142.92,142.91,0.03]
[1742957038944,51.17955559,142.92,142.91,0.03]
[1742957040264,38.933972,142.92,142.91,0.03]
[1742957040835,20.28432314,142.92,142.91,0.03]
[1742957042661,81.663,142.94,142.91,0.03]
[1742957042852,0.34732314,142.94,142.91,0.03]
[1742957044254,12.59290673,142.94,142.91,0.03]
[1742957047061,0.34732314,142.94,142.91,0.03]
[1742957047546,0.20516157,142.94,142.91,0.03]
[1742957048348,0.063,142.94,142.91,0.03]
[1742957051840,0.14216157,142.93,142.91,0.03]
[1742957055750,12.38774516,142.93,142.91,0.03]
[1742957056074,12.24558359,142.92,142.91,0.03]
[1742957056253,51.17955559,142.92,142.91,0.03]
[1742957060762,38.933972,142.92,142.91,0.03]
[1742957063380,20.14216157,142.92,142.91,0.03]
[1742957063548,0.14216157,142.92,142.91,0.03]
[1742957063863,18.71264886,142.94,142.91,12.27558359]
[1742957063864,0.063,142.94,142.91,12.27558359]
[1742957064071,0.063,142.94,142.92,12.24558359]
[1742957065256,0.063,142.94,142.91,0.03]
[1742957068445,0.20516157,142.94,142.91,0.03]
[1742957069960,12.30858359,142.94,142.91,0.03]
[1742957070166,12.52990673,142.93,142.91,0.03]
[1742957070857,32.38774516,142.92,142.91,0.03]
[1742957075881,20.14216157,142.92,142.91,0.03]
[1742957076981,0.063,142.94,142.91,12.27558359]
[1742957077158,0.063,142.94,142.93,12.24558359]
[1742957077882,0.063,142.94,142.91,0.03]
[1742957078071,0.14216157,142.93,142.91,0.03]
[1742957081669,0.14216157,142.93,142.91,12.27558359]
[1742957082867,0.14216157,142.93,142.91,0.03]
[1742957089885,20.14216157,142.93,142.91,0.03]
[1742957096592,20.14216157,142.93,142.91,12.27558359]
[1742957096791,0.063,142.94,142.92,12.24558359]
[1742957096994,0.063,142.94,142.93,12.24558359]
[1742957098601,0.063,142.94,142.93,19.24198359]
[1742957100322,0.063,142.97,142.94,18.64964886]
[1742957100482,0.063,142.97,142.96,12.24558359]
[1742957100682,0.063,142.97,142.96,18.80790912]
[1742957102914,0.063,142.97,142.96,12.24558359]
[1742957105493,0.063,142.97,142.92,107.31197439]
[1742957105818,0.20516157,142.97,142.93,12.24558359]
[1742957106122,0.34732314,142.97,142.93,12.24558359]
[1742957106495,12.59290673,142.97,142.92,12.24558359]
[1742957110594,12.59290673,142.97,142.91,12.27558359]
[1742957110797,0.14216157,142.95,142.91,12.27558359]
[1742957111711,0.14216157,142.95,142.91,0.03]
[1742957111712,0.14216157,142.92,142.91,0.03]
[1742957111913,0.28432314,142.93,142.91,0.03]
[1742957113714,0.28432314,142.93,142.91,12.27558359]
[1742957113920,0.14216157,142.93,142.92,12.24558359]
[1742957115329,0.14216157,142.96,142.92,12.24558359]
[1742957115530,0.28432314,142.96,142.92,12.24558359]
[1742957115737,0.063,142.97,142.95,12.24558359]
[1742957116820,0.063,142.97,142.94,12.24558359]
[1742957118012,20.0,142.96,142.91,0.03]
[1742957118226,0.28432314,142.95,142.92,12.24558359]
[1742957118402,0.28432314,142.95,142.93,12.24558359]
[1742957118605,0.14216157,142.95,142.93,12.24558359]
[1742957119302,0.14216157,142.95,142.92,12.24558359]
[1742957121526,0.28432314,142.95,142.91,0.03]
[1742957123725,0.28432314,142.95,142.91,12.27558359]
[1742957124622,0.28432314,142.95,142.91,19.27288359]
[1742957128629,0.14216157,142.95,142.92,12.24558359]
[1742957128949,0.063,142.97,142.94,12.24558359]
[1742957131637,0.063,142.97,142.93,12.24558359]
[1742957132219,0.063,142.97,142.92,12.24558359]
[1742957132816,0.14216157,142.96,142.91,12.27558359]
[1742957133614,0.28432314,142.94,142.91,0.03]
[1742957135846,0.28432314,142.94,142.91,12.27558359]
[1742957136145,0.14216157,142.94,142.91,12.27558359]
[1742957137139,0.14216157,142.94,142.91,19.27278359]
[1742957137336,0.14216157,142.94,142.92,12.24558359]
[1742957142050,0.20516157,142.97,142.92,19.24218359]
[1742957142267,0.34732314,142.97,142.92,19.24218359]
[1742957143654,0.34732314,142.97,142.93,12.24558359]
[1742957144858,0.34732314,142.97,142.93,19.24188359]
[1742957146159,0.34732314,142.97,142.93,12.24558359]
[1742957146459,12.59290673,142.97,142.91,0.03]
[1742957146642,12.59290673,142.97,142.92,12.24558359]
[1742957146849,0.34732314,142.97,142.92,12.24558359]
[1742957147152,0.20516157,142.97,142.94,12.24558359]
[1742957147334,0.063,142.97,142.95,12.24558359]
[1742957148560,0.063,142.97,142.95,19.24088359]
[1742957148950,0.063,142.97,142.95,12.24558359]
[1742957149653,0.063,142.97,142.95,19.24098359]
[1742957152157,0.063,142.97,142.96,12.24558359]
[1742957154462,0.063,142.97,142.96,19.24048359]
[1742957155963,0.063,142.97,142.96,12.24558359]
[1742957156763,0.063,142.97,142.96,19.24048359]
[1742957156962,0.063,142.97,142.96,6.9949]
[1742957157468,0.063,142.97,142.96,19.24048359]
[1742957160852,0.063,142.97,142.96,26.85688359]
[1742957162880,0.063,142.97,142.96,25.30048359]
[1742957165276,0.063,142.97,142.96,12.24558359]
[1742957165455,0.063,142.97,142.95,19.24078359]
[1742957166873,0.063,142.97,142.94,6.9959]
[1742957167072,0.063,142.97,142.95,12.24558359]
[1742957168659,0.063,142.97,142.95,19.24088359]
[1742957168861,0.063,142.97,142.96,12.24558359]
[1742957171471,0.063,142.97,142.96,119.99013245]
[1742957171659,0.063,142.97,142.96,126.05013245]
[1742957171857,0.063,142.97,142.96,134.73824362]
[1742957175174,0.063,142.97,142.96,94.34558359]
[1742957177169,0.063,142.97,142.96,12.24558359]
[1742957179194,0.063,142.97,142.96,19.24048359]
[1742957179483,0.063,142.97,142.96,37.89013245]
[1742957182890,0.063,142.97,142.96,119.99013245]
[1742957187598,0.063,142.98,142.97,18.933972]
[1742957187775,0.063,142.98,142.97,137.95938273]
[1742957188908,0.063,142.98,142.97,144.95378273]
[1742957189103,0.063,142.98,142.97,143.27146587]
[1742957189474,0.063,142.98,142.97,144.66981857]
[1742957190197,0.063,142.98,142.97,143.27146587]
[1742957190377,0.063,142.98,142.97,135.24006915]
[1742957190707,0.063,142.98,142.97,136.63838923]
[1742957192005,0.063,142.98,142.97,82.1]
[1742957192174,0.063,142.98,142.97,101.33998359]
[1742957193001,0.063,142.98,142.97,94.34558359]
[1742957194680,0.063,142.98,142.97,101.33998359]
[1742957198488,0.063,142.98,142.97,101.36998359]
[1742957200097,0.063,142.98,142.97,120.01963245]
[1742957200298,0.0001,142.98,142.97,193.35244651]
[1742957200480,0.0001,142.98,142.97,195.00544651]
[1742957200801,0.0001,142.98,142.97,145.52311215]
[1742957201378,0.0001,142.98,142.97,195.00544651]
[1742957202397,0.063,143.06,143.05,12.24558359]
[1742957204906,0.063,143.06,143.05,37.88573245]
[1742957205107,0.063,143.06,143.05,39.28330868]
[1742957206414,0.063,143.06,143.05,121.38320868]
[1742957209405,0.063,143.06,143.05,94.34548359]
[1742957209623,0.063,143.06,143.04,12.24558359]
[1742957209907,6.244,143.06,143.04,12.24558359]
[1742957211417,7.8028,143.06,143.03,12.24558359]
[1742957211599,7.8028,143.06,143.02,12.24558359]
[1742957211914,7.8028,143.06,143.01,82.0999]
[1742957211915,7.8028,143.06,143.03,12.24558359]
[1742957213611,7.8028,143.06,143.02,12.24558359]
[1742957215406,7.8028,143.06,143.03,12.24558359]
[1742957215717,7.8028,143.06,143.02,12.24558359]
[1742957217343,7.8028,143.06,143.02,19.23738359]
[1742957218314,7.8028,143.06,143.03,12.24558359]
[1742957218824,7.8028,143.06,143.02,6.9918]
[1742957218825,7.8028,143.06,143.04,12.24558359]
[1742957219327,0.063,143.06,143.05,12.24558359]
[1742957219501,0.063,143.06,143.05,19.23608359]
[1742957220101,0.063,143.06,143.05,37.88573245]
[1742957221113,0.063,143.06,143.05,12.24558359]
[1742957221309,0.063,143.06,143.03,18.30558359]
[1742957221818,0.063,143.06,143.03,12.24558359]
[1742957222323,0.063,143.06,143.04,12.24558359]
[1742957222617,0.063,143.06,143.05,12.24558359]
[1742957224024,0.063,143.06,143.03,12.24558359]
[1742957224340,0.063,143.06,143.02,94.34548359]
[1742957224496,0.063,143.06,143.02,101.33748359]
[1742957225330,0.063,143.06,143.03,12.24558359]
[1742957226218,0.063,143.06,143.05,12.24558359]
[1742957226398,0.063,143.06,143.05,30.89523245]
[1742957226830,0.063,143.06,143.05,114.39271713]
[1742957227008,0.063,143.06,143.05,130.18865107]
[1742957227516,0.063,143.06,143.05,129.90432793]
[1742957227716,0.063,143.06,143.05,102.5665679]
[1742957228639,0.063,143.06,143.05,109.5570679]
[1742957231249,0.063,143.06,143.05,82.0999]
[1742957231543,0.063,143.06,143.02,26.06088322]
[1742957234937,19.06908322,143.04,142.99,82.0999]
[1742957235121,6.1002,143.02,142.99,82.0999]
[1742957235436,6.1002,143.02,142.98,19.06908322]
[1742957235618,6.1002,143.02,142.97,108.19338322]
[1742957236328,19.06908322,143.0,142.97,82.1299]
[1742957236844,20.81944479,143.01,142.97,0.03]
[1742957237046,19.06908322,143.0,142.97,0.03]
[1742957237344,0.14216157,142.99,142.97,0.03]
[1742957238242,1.6082,143.01,142.98,19.06908322]
[1742957238809,1.6082,143.01,142.97,19.09908322]
[1742957239739,1.6082,143.01,142.97,26.09328322]
[1742957240423,1.5513,143.05,143.0,19.06908322]
[1742957240615,0.14216157,143.04,143.0,19.06908322]
[1742957241018,20.62038322,143.05,143.0,19.06908322]
[1742957241216,1.5513,143.05,143.01,19.06908322]
[1742957241529,6.1005,143.06,143.04,19.06908322]
[1742957241725,0.063,143.06,143.05,26.05958322]
[1742957243941,0.063,143.06,143.02,108.16048322]
[1742957244435,0.063,143.06,143.03,19.06908322]
[1742957244858,0.20516157,143.06,143.01,19.06908322]
[1742957245022,0.20516157,143.06,143.02,19.06908322]
[1742957246021,0.20516157,143.06,143.02,26.06098322]
[1742957247251,0.20516157,143.06,143.03,19.06908322]
[1742957249058,0.20516157,143.06,143.01,6.9923]
[1742957249361,0.20516157,143.06,143.02,19.06908322]
[1742957250722,0.20516157,143.06,143.01,19.06908322]
[1742957250919,0.20516157,143.06,142.98,36.13444886]
[1742957250920,6.1765,143.03,142.98,19.06908322]
[1742957251146,25.24558322,143.03,142.98,19.06908322]
[1742957251549,6.1765,143.03,142.98,26.06298322]
[1742957251757,6.1765,143.03,142.99,19.06908322]
[1742957253651,6.1765,143.03,142.99,26.06248322]
[1742957253836,7.8158,143.06,143.01,19.06908322]
[1742957254032,0.14216157,143.05,143.01,19.06908322]
[1742957254954,0.14216157,143.05,143.02,19.06908322]
[1742957255336,7.8158,143.06,143.02,19.06908322]
[1742957255536,7.8158,143.06,143.01,19.06908322]
[1742957256257,7.8158,143.06,143.02,26.06108322]
[1742957256766,6.2395,143.06,143.04,19.06908322]
[1742957257536,6.2395,143.06,143.03,19.06908322]
[1742957257741,0.063,143.05,143.03,19.06908322]
[1742957261265,0.063,143.05,143.04,19.06908322]
[1742957261442,0.063,143.05,143.04,37.71873208]
[1742957262741,0.063,143.05,143.04,44.70973208]
[1742957264473,0.063,143.05,143.04,126.80963208]
[1742957267981,0.0001,143.06,143.05,18.933972]
[1742957268169,0.0001,143.06,143.05,54.65064837]
[1742957268781,0.063,143.09,143.08,20.0]
[1742957268991,0.063,143.09,143.08,166.50460791]
[1742957269291,0.063,143.09,143.08,168.54551541]
[1742957269961,0.063,143.09,143.08,175.53451541]
[1742957279083,0.063,143.12,143.09,18.79181043]
[1742957279288,0.063,143.12,143.11,58.14521679]
[1742957280392,0.063,143.12,143.11,65.13281679]
[1742957280595,0.063,143.12,143.11,126.80613208]
[1742957281093,0.063,143.12,143.11,108.15648322]
[1742957285774,0.063,143.12,143.11,126.80613208]
[1742957286277,0.063,143.12,143.11,128.20288893]
[1742957286704,0.063,143.12,143.11,101.16888322]
[1742957287071,0.063,143.12,143.07,8.38680038]
[1742957287272,0.063,143.12,143.09,19.06908322]
[1742957288779,0.063,143.12,143.11,19.06908322]
[1742957290298,0.063,143.12,143.09,19.06908322]
[1742957290811,0.063,143.12,143.1,19.06908322]
[1742957291493,0.063,143.12,143.11,19.06908322]
[1742957291675,0.063,143.12,143.11,37.71873208]
[1742957292423,0.063,143.12,143.11,44.70633208]
[1742957293701,0.063,143.12,143.11,46.10306775]
[1742957296083,0.063,143.12,143.11,27.45341889]
[1742957296990,0.063,143.12,143.11,46.10306775]
[1742957297204,0.063,143.12,143.11,128.20286775]
[1742957299506,0.063,143.12,143.11,128.62935246]
[1742957301494,0.063,143.13,143.11,128.62935246]
[1742957301698,0.063,143.13,143.12,37.71873208]
[1742957301999,0.0001,143.13,143.12,120.38717836]
[1742957302204,0.0001,143.13,143.12,129.07528868]
[1742957303193,0.0001,143.13,143.12,136.06238868]
[1742957303600,0.0001,143.13,143.12,135.4937424]
[1742957310514,0.0001,143.13,143.12,116.84409354]
[1742957310698,0.0001,143.13,143.12,108.15598322]
[1742957311009,0.0001,143.13,143.12,101.16888322]
[1742957312805,0.0001,143.13,143.12,82.0998]
[1742957314212,0.0001,143.13,143.12,101.16888322]
[1742957314988,0.0001,143.13,143.12,19.06908322]
[1742957315315,0.0001,143.13,143.11,19.06908322]
[1742957316916,0.0001,143.13,143.1,20.04685241]
[1742957317108,0.0001,143.13,143.12,19.06908322]
[1742957318015,0.0001,143.13,143.12,0.03]
[1742957320123,0.0001,143.13,143.09,113.11563722]
[1742957320696,0.0001,143.13,143.1,19.06908322]
[1742957322737,0.0001,143.13,143.12,19.06908322]
[1742957323021,0.0001,143.13,143.12,126.80563208]
[1742957323317,0.0001,143.13,143.12,108.15598322]
[1742957323706,0.0001,143.13,143.12,101.16888322]
[1742957324102,0.0001,143.13,143.12,108.15598322]
[1742957324803,0.063,143.14,143.13,82.24186157]
[1742957325004,0.063,143.14,143.13,137.03172423]
[1742957325503,0.063,143.14,143.13,137.31604737]
[1742957326108,0.063,143.14,143.13,136.88956266]
[1742957329623,0.063,143.14,143.13,128.20145234]
[1742957329812,0.063,143.14,143.13,128.23145234]
[1742957330012,0.063,143.14,143.13,126.83503208]
[1742957330403,0.063,143.14,143.13,89.1163]
[1742957331204,0.063,143.14,143.13,7.0166]
[1742957331825,0.063,143.14,143.13,0.03]
[1742957332031,25.37978322,143.14,143.13,0.03]
[1742957332724,6.3107,143.14,143.13,0.03]
[1742957336032,25.37978322,143.14,143.13,0.03]
[1742957336521,6.3107,143.14,143.13,0.03]
[1742957338419,25.37978322,143.14,143.13,0.03]
[1742957340238,6.3107,143.14,143.13,0.03]
[1742957341254,25.52194479,143.14,143.13,0.03]
[1742957341634,25.66410636,143.14,143.13,0.03]
[1742957343655,6.3107,143.14,143.13,0.03]
[1742957347854,25.37978322,143.14,143.13,0.03]
[1742957349332,25.66410636,143.14,143.13,0.03]
[1742957350331,32.65020636,143.14,143.13,0.03]
[1742957350834,20.0,143.11,143.05,82.0997]
[1742957351136,19.06908322,143.09,143.05,82.0997]
[1742957351727,19.06908322,143.08,143.05,82.0997]
[1742957351945,19.06908322,143.08,143.03,0.03]
[1742957354433,19.06908322,143.08,143.03,19.09908322]
[1742957354651,0.14216157,143.08,143.03,19.09908322]
[1742957355757,19.21124479,143.08,143.03,19.09908322]
[1742957356458,19.21124479,143.08,143.03,26.09048322]
[1742957357356,19.06908322,143.07,143.03,0.03]
[1742957357540,19.06908322,143.06,143.03,0.03]
[1742957358150,19.06908322,143.04,143.03,0.03]
[1742957358353,6.18616157,143.08,143.03,0.03]
[1742957358354,19.06908322,143.05,143.03,0.03]
[1742957358661,0.14216157,143.05,143.03,0.03]
[1742957361561,19.06908322,143.06,143.03,0.03]
[1742957361864,0.14216157,143.06,143.03,0.03]
[1742957362540,19.06908322,143.07,143.03,0.03]
[1742957363040,19.06908322,143.05,143.03,0.03]
[1742957363240,0.14216157,143.06,143.04,19.06908322]
[1742957366844,0.14216157,143.06,143.04,12.21687407]
[1742957367448,20.0,143.06,143.05,12.21687407]
[1742957368258,6.18616157,143.08,143.05,12.21687407]
[1742957369655,6.18616157,143.08,143.06,12.21687407]
[1742957369986,6.18616157,143.08,143.05,12.21687407]
[1742957370563,0.28432314,143.07,143.04,12.21687407]
[1742957370881,0.28432314,143.07,143.03,12.24687407]
[1742957372281,0.14216157,143.07,143.03,12.24687407]
[1742957372457,0.14216157,143.07,143.04,12.21687407]
[1742957372873,0.28432314,143.07,143.03,0.03]
[1742957374280,0.28432314,143.07,143.03,12.24687407]
[1742957374457,0.14216157,143.07,143.04,12.21687407]
[1742957374873,0.28432314,143.07,143.03,12.24687407]
[1742957377480,0.28432314,143.07,143.04,12.21687407]
[1742957384079,0.28432314,143.07,143.03,12.24687407]
[1742957384463,0.28432314,143.07,143.04,12.21687407]
[1742957385281,20.14216157,143.06,143.05,12.21687407]
[1742957389273,20.14216157,143.06,143.04,12.21687407]
[1742957389785,20.14216157,143.06,143.05,0.03]
[1742957391770,20.0,143.06,143.05,0.03]
[1742957391976,20.0,143.06,143.05,12.24687407]
[1742957392587,20.0,143.06,143.05,0.03]
[1742957395285,20.0,143.06,143.05,12.24687407]
[1742957396495,20.0,143.06,143.05,0.03]
[1742957398187,12.32616157,143.08,143.05,0.03]
[1742957398494,12.32616157,143.08,143.05,12.24687407]
[1742957398882,12.32616157,143.08,143.05,0.03]
[1742957399391,0.14216157,143.08,143.05,0.03]
[1742957399589,0.14216157,143.08,143.05,12.24687407]
[1742957399788,6.12,143.09,143.06,12.21687407]
[1742957399975,6.1265,143.12,143.06,12.21687407]
[1742957400176,6.1265,143.12,143.08,12.21687407]
[1742957400177,0.14216157,143.11,143.08,12.21687407]
[1742957401002,6.1265,143.12,143.08,12.21687407]
[1742957401181,0.14216157,143.11,143.08,12.21687407]
[1742957403608,0.14216157,143.11,143.07,12.21687407]
[1742957407003,6.1265,143.12,143.08,12.21687407]
[1742957407206,0.14216157,143.12,143.08,12.21687407]
[1742957409119,14.07633564,143.13,143.05,0.03]
[1742957409120,0.28432314,143.09,143.05,0.03]
[1742957409305,12.50119721,143.06,143.05,0.03]
[1742957409507,0.28432314,143.06,143.05,0.03]
[1742957410016,0.14216157,143.06,143.05,0.03]
[1742957410187,0.14216157,143.07,143.05,0.03]
[1742957410376,0.28432314,143.07,143.05,0.03]
[1742957410782,0.14216157,143.07,143.05,0.03]
[1742957410984,6.12,143.08,143.05,12.24687407]
[1742957412499,6.12,143.08,143.05,0.03]
[1742957412697,6.12,143.08,143.06,12.21687407]
[1742957412882,20.0,143.11,143.07,12.21687407]
[1742957413089,0.34732314,143.13,143.09,12.21687407]
[1742957413408,0.34732314,143.13,143.11,12.21687407]
[1742957413801,0.34732314,143.13,143.1,12.21687407]
[1742957416908,0.34732314,143.13,143.08,12.21687407]
[1742957416909,0.14216157,143.1,143.08,12.21687407]
[1742957417093,20.14216157,143.1,143.08,12.21687407]
[1742957417712,0.14216157,143.1,143.08,12.21687407]
[1742957417904,0.14216157,143.1,143.09,12.21687407]
[1742957418796,20.0,143.11,143.09,12.21687407]
[1742957419112,0.34732314,143.13,143.1,12.21687407]
[1742957419298,0.063,143.13,143.12,12.21687407]
[1742957425507,0.063,143.13,143.11,12.21687407]
[1742957426893,0.14216157,143.12,143.11,12.21687407]
[1742957427095,20.0,143.12,143.1,12.24687407]
[1742957428099,20.0,143.12,143.1,0.03]
[1742957428418,0.14216157,143.11,143.1,0.03]
[1742957432716,31.15084607,143.11,143.1,0.03]
[1742957434011,6.66372314,143.07,143.05,0.03]
[1742957434203,6.24216157,143.06,143.05,0.03]
[1742957435115,6.38432314,143.06,143.05,0.03]
[1742957436504,6.24216157,143.06,143.05,0.03]
[1742957442229,6.38432314,143.06,143.05,0.03]
[1742957442710,6.24216157,143.06,143.05,0.03]
[1742957442910,6.24216157,143.06,143.05,12.24687407]
[1742957443932,6.24216157,143.06,143.05,0.03]
[1742957446134,20.14216157,143.06,143.05,0.03]
[1742957446515,20.0,143.06,143.05,0.03]
[1742957450533,40.42819721,143.06,143.05,0.03]
[1742957450841,40.92819721,143.06,143.05,0.03]
[1742957451522,40.42819721,143.06,143.05,0.03]
[1742957451923,40.92819721,143.06,143.05,0.03]
[1742957453439,40.42819721,143.06,143.05,0.03]
[1742957453829,8.0725,143.1,143.05,0.03]
[1742957454042,12.50119721,143.08,143.05,0.03]
[1742957454226,12.21687407,143.07,143.05,0.03]
[1742957455618,0.14216157,143.07,143.05,0.03]
[1742957456140,12.35903564,143.07,143.05,0.03]
[1742957457528,12.35903564,143.06,143.05,0.03]
[1742957457725,12.50119721,143.06,143.05,0.03]
[1742957464625,0.14216157,143.06,143.05,0.03]
[1742957465342,12.35903564,143.06,143.05,0.03]
[1742957466157,12.21687407,143.06,143.05,0.03]
[1742957466961,12.35903564,143.06,143.05,0.03]
[1742957469948,12.21687407,143.06,143.05,0.03]
[1742957470163,57.00299628,143.1,143.06,18.64964886]
[1742957470164,0.063,143.1,143.06,18.64964886]
[1742957470469,0.063,143.1,143.09,12.21687407]
[1742957470646,0.063,143.1,143.09,114.60492293]
[1742957470845,0.063,143.1,143.09,95.95527407]
[1742957471048,0.063,143.1,143.09,83.7384]
[1742957472267,0.063,143.1,143.09,102.94387407]
[1742957472442,0.063,143.1,143.09,121.59352293]
[1742957480102,0.063,143.14,143.1,18.64964886]
[1742957480374,0.063,143.14,143.12,30.86652293]
[1742957481050,0.063,143.14,143.12,12.21687407]
[1742957481355,0.063,143.14,143.12,19.20397407]
[1742957481559,0.063,143.14,143.12,6.9871]
[1742957482053,0.063,143.14,143.12,19.20397407]
[1742957482872,0.063,143.14,143.12,37.85362293]
[1742957483278,0.063,143.14,143.12,19.20397407]
[1742957483872,0.063,143.14,143.12,12.21687407]
[1742957484380,0.063,143.14,143.1,94.31657407]
[1742957484547,12.27987407,143.14,143.1,82.0997]
[1742957486147,12.21687407,143.11,143.06,82.0997]
[1742957486450,12.21687407,143.09,143.06,82.0997]
[1742957487372,12.21687407,143.08,143.05,0.03]
[1742957487746,32.21687407,143.09,143.05,0.03]
[1742957489177,20.0,143.09,143.05,12.24687407]
[1742957489379,12.21687407,143.1,143.05,12.24687407]
[1742957489675,12.21687407,143.1,143.05,19.23697407]
[1742957491571,32.50119721,143.09,143.05,0.03]
[1742957491773,12.21687407,143.08,143.05,0.03]
[1742957492577,32.50119721,143.09,143.05,0.03]
[1742957492954,32.21687407,143.09,143.05,0.03]
[1742957493172,20.0,143.09,143.05,12.24687407]
[1742957493885,20.0,143.09,143.06,6.99]
[1742957494686,32.21687407,143.09,143.06,6.99]
[1742957495153,32.21687407,143.09,143.05,0.03]
[1742957495154,12.21687407,143.08,143.05,82.1297]
[1742957496563,12.21687407,143.07,143.05,82.1297]
[1742957498076,12.21687407,143.07,143.05,0.03]
[1742957498463,12.21687407,143.06,143.05,0.03]
[1742957498664,12.50119721,143.06,143.05,0.03]
[1742957500079,14.10699721,143.06,143.05,0.03]
[1742957500879,40.9926883,143.06,143.05,0.03]
[1742957501883,39.3868883,143.06,143.05,0.03]
[1742957502977,19.10256516,143.07,143.05,0.03]
[1742957503360,20.0,143.06,143.05,0.03]
[1742957503580,39.3868883,143.06,143.05,0.03]
[1742957504470,20.28432314,143.06,143.05,0.03]
[1742957504881,20.0,143.06,143.05,0.03]
[1742957505188,12.7445,143.1,143.05,0.03]
[1742957505483,31.84706516,143.1,143.05,0.03]
[1742957505686,19.10256516,143.09,143.05,0.03]
[1742957506183,19.10256516,143.08,143.05,0.03]
[1742957506486,19.3868883,143.06,143.05,0.03]
[1742957508183,39.3868883,143.06,143.05,0.03]
[1742957508370,19.3868883,143.06,143.05,0.03]
[1742957508572,25.6033883,143.06,143.05,0.03]
[1742957511085,19.3868883,143.06,143.05,0.03]
[1742957514279,38.03653716,143.06,143.05,0.03]
[1742957514490,38.53653716,143.06,143.05,0.03]
[1742957514711,38.03653716,143.06,143.05,0.03]
[1742957515071,38.53653716,143.06,143.05,0.03]
[1742957515394,38.03653716,143.06,143.05,0.03]
[1742957515582,38.53653716,143.06,143.05,0.03]
[1742957515789,58.03653716,143.04,143.03,0.03]
[1742957515992,64.21653716,143.04,143.03,0.03]
[1742957518503,45.5668883,143.04,143.03,0.03]
[1742957518702,39.3868883,143.04,143.03,0.03]
[1742957520573,19.3868883,143.04,143.03,0.03]
[1742957520981,20.0,143.04,143.03,0.03]
[1742957527014,39.10256516,143.04,143.03,0.03]
[1742957528512,20.0,143.04,143.03,0.03]